bitfinex/quotes_ETHUSD_20250903
["timestamp","ask_amount","ask_price","bid_price","bid_amount"]
[1756874763678,18.79642795,4340.4,4340.3,0.7338]
[1756874764275,14.88742795,4340.4,4340.3,0.7338]
[1756874764597,1.623,4340.4,4340.3,1.2233]
[1756874764769,5.6462,4340.4,4340.3,1.2233]
[1756874764968,8.6462,4340.4,4340.3,1.2233]
[1756874765790,5.531,4340.4,4340.3,1.2233]
[1756874765957,5.531,4340.4,4340.3,3.5272882]
[1756874766780,5.531,4340.4,4340.3,1.2233]
[1756874766982,8.531,4340.4,4340.3,0.7338]
[1756874767200,8.6462,4340.4,4340.3,0.7338]
[1756874768205,8.6462,4340.4,4340.3,1.2233]
[1756874768795,4.7382,4340.4,4340.3,1.2233]
[1756874769319,8.6452,4340.4,4340.3,1.2233]
[1756874770090,4.7382,4340.4,4340.3,1.2233]
[1756874770290,8.6452,4340.4,4340.3,1.2233]
[1756874770619,8.6452,4340.4,4340.3,3.5272882]
[1756874770620,4.7382,4340.4,4340.3,3.5272882]
[1756874770781,8.6442,4340.4,4340.3,3.5272882]
[1756874770984,2.30356669,4341.1,4340.3,1.92164255]
[1756874770985,1.7392,4341.1,4340.3,1.92164255]
[1756874771203,3.906,4341.0,4340.7,2.30376086]
[1756874771407,3.0,4340.9,4340.8,0.9298]
[1756874771899,3.0,4340.9,4340.8,1.2193]
[1756874775789,6.906,4341.0,4340.8,1.2193]
[1756874775990,3.0,4340.9,4340.8,1.2193]
[1756874776202,3.0,4340.9,4340.8,0.779]
[1756874776724,3.0,4340.9,4340.8,1.2193]
[1756874778122,6.906,4341.0,4340.8,1.2193]
[1756874778419,3.0,4340.9,4340.8,1.2193]
[1756874778595,3.0,4340.9,4340.8,0.779]
[1756874778997,3.907,4341.0,4340.8,0.779]
[1756874779201,3.0,4340.9,4340.8,0.779]
[1756874779825,3.0,4340.9,4340.8,1.2193]
[1756874783726,6.907,4341.0,4340.8,1.2193]
[1756874783933,3.0,4340.9,4340.8,1.2193]
[1756874784129,3.0,4340.9,4340.8,2.59321027]
[1756874784333,6.907,4341.0,4340.9,2.30366974]
[1756874784334,0.001,4341.0,4340.9,2.30366974]
[1756874784509,6.898,4341.0,4340.9,2.59316974]
[1756874784711,6.898,4341.0,4340.9,3.52296974]
[1756874785103,6.898,4341.0,4340.9,1.2193]
[1756874785835,6.898,4341.0,4340.9,3.52296974]
[1756874786034,6.898,4341.0,4340.9,1.2193]
[1756874786430,6.898,4341.0,4340.9,3.52296974]
[1756874787453,3.897,4341.0,4340.9,4.11716362]
[1756874787603,0.001,4341.0,4340.9,4.11716362]
[1756874787906,3.896,4341.0,4340.9,4.11716362]
[1756874792555,0.001,4341.0,4340.9,4.11716362]
[1756874801242,0.001,4341.0,4340.9,2.89786362]
[1756874801565,0.001,4341.0,4340.9,2.59226974]
[1756874801733,0.001,4341.0,4340.9,3.05676974]
[1756874803875,0.001,4341.0,4340.9,3.54736974]
[1756874804177,0.001,4341.0,4340.9,3.57040643]
[1756874804338,0.001,4341.0,4340.9,3.54736974]
[1756874804671,0.001,4341.0,4340.9,4.53280362]
[1756874805247,0.001,4341.0,4340.9,4.55584031]
[1756874805573,1e-08,4341.0,4340.9,11.2970062]
[1756874805744,1e-08,4341.0,4340.9,11.27396951]
[1756874808168,1e-08,4341.0,4340.9,17.67396951]
[1756874812746,1e-08,4341.0,4340.9,20.67396951]
[1756874818464,1e-08,4341.0,4340.9,3.57770362]
[1756874818690,0.49570001,4341.0,4340.9,2.30366974]
[1756874819868,0.76560001,4341.0,4340.9,2.30366974]
[1756874823400,0.49570001,4341.0,4340.9,2.30366974]
[1756874823570,0.00270001,4341.0,4340.9,2.30366974]
[1756874824003,1e-08,4341.0,4340.9,2.30366974]
[1756874824305,0.00540001,4341.0,4340.9,2.30366974]
[1756874827204,1e-08,4341.0,4340.9,3.66512806]
[1756874827406,1e-08,4341.0,4340.9,5.04212806]
[1756874827583,0.02,4341.8,4341.7,3.09524527]
[1756874827787,0.02,4341.8,4341.7,12.92341116]
[1756874828018,0.02,4341.8,4341.7,16.54441913]
[1756874828204,1e-08,4341.9,4341.8,6.09519222]
[1756874828526,1e-08,4341.9,4341.8,7.03869222]
[1756874828810,1e-08,4341.9,4341.8,7.33309222]
[1756874830380,1e-08,4341.9,4341.8,4.33309222]
[1756874830617,1e-08,4341.9,4341.8,6.60100019]
[1756874831015,1e-08,4341.9,4341.8,5.33530019]
[1756874831192,1e-08,4341.9,4341.8,8.45010019]
[1756874831595,0.00270001,4341.9,4341.8,4.57110019]
[1756874831810,0.49030001,4341.9,4341.7,0.1152]
[1756874832187,0.2699,4341.8,4341.7,0.1152]
[1756874832684,0.7629,4341.8,4341.7,0.1152]
[1756874833206,0.7629,4341.8,4341.7,2.41844527]
[1756874835389,0.493,4341.8,4341.7,0.1152]
[1756874836790,0.493,4341.8,4341.7,2.41844527]
[1756874837837,0.7603,4341.8,4341.7,0.1152]
[1756874838139,6.70946589,4341.8,4341.7,0.1152]
[1756874838340,12.39111248,4341.8,4341.7,0.1152]
[1756874838634,3.0,4341.7,4341.2,2.30349939]
[1756874838818,0.008,4341.3,4341.2,2.30349939]
[1756874839341,0.008,4341.3,4341.1,0.1152]
[1756874839342,0.4956,4341.3,4341.1,0.1152]
[1756874839505,0.008,4341.3,4341.1,0.1152]
[1756874839699,0.008,4341.3,4341.2,2.30351055]
[1756874839900,0.008,4341.3,4341.1,0.1152]
[1756874840207,0.4876,4341.2,4341.1,0.1152]
[1756874840409,0.4982,4341.2,4341.1,2.41876361]
[1756874840911,0.0106,4341.2,4341.1,2.41876361]
[1756874844964,4.3626,4341.6,4341.2,2.30347752]
[1756874845123,0.0027,4341.3,4341.2,2.30347752]
[1756874846051,0.4903,4341.3,4341.1,0.1152]
[1756874846277,0.4876,4341.2,4341.1,0.1152]
[1756874846447,0.4876,4341.2,4341.1,2.41876361]
[1756874846633,3.874,4341.4,4341.2,2.30349113]
[1756874847674,3.874,4341.4,4341.1,0.1152]
[1756874847850,2.341,4341.8,4341.2,2.30351055]
[1756874848171,3.873,4341.7,4341.2,2.30351055]
[1756874848677,0.4876,4341.6,4341.3,2.30343632]
[1756874848891,0.0027,4341.4,4341.3,2.30343632]
[1756874851190,6.873,4341.7,4341.3,2.59073632]
[1756874851399,1.8534,4341.8,4341.7,2.30324527]
[1756874851400,1.623,4341.8,4341.7,2.30324527]
[1756874851600,3.87100001,4341.9,4341.8,2.30319222]
[1756874851754,1e-08,4341.9,4341.8,3.53049222]
[1756874852383,1e-08,4341.9,4341.8,4.45564938]
[1756874857176,1e-08,4341.9,4341.8,4.45562938]
[1756874858614,1e-08,4341.9,4341.8,3.51562938]
[1756874858779,0.27260001,4341.9,4341.8,2.63343126]
[1756874859274,1e-08,4341.9,4341.8,3.39413126]
[1756874859678,1e-08,4341.9,4341.8,3.86073126]
[1756874859878,1e-08,4341.9,4341.8,2.63343126]
[1756874860110,0.73100001,4341.9,4341.8,0.21503904]
[1756874860314,0.73100001,4341.9,4341.8,2.51823126]
[1756874860510,0.27260001,4341.9,4341.8,0.21503904]
[1756874860812,0.27260001,4341.9,4341.8,2.51823126]
[1756874863520,0.27260001,4341.9,4341.8,0.21503904]
[1756874863718,0.73100001,4341.9,4341.8,0.21503904]
[1756874864218,4.14460001,4341.9,4341.8,0.21503904]
[1756874864718,4.60300001,4341.9,4341.8,0.21503904]
[1756874864899,4.14460001,4341.9,4341.8,2.51823126]
[1756874865220,4.14460001,4341.9,4341.8,0.21503904]
[1756874865809,5.07482001,4341.9,4341.8,0.21503904]
[1756874866015,11.1418859,4341.9,4341.8,0.21503904]
[1756874866315,14.1418859,4341.9,4341.1,2.42275979]
[1756874866518,4.623,4341.8,4341.2,2.3034918]
[1756874866815,4.623,4341.8,4341.1,0.1192]
[1756874866816,3.871,4341.7,4341.1,0.5926]
[1756874866997,3.871,4341.7,4341.4,2.30335453]
[1756874868014,0.0027,4341.5,4341.3,0.004]
[1756874868206,0.4611,4341.5,4341.3,2.30744653]
[1756874868410,0.0027,4341.5,4341.3,2.30744653]
[1756874871023,0.0027,4341.5,4341.4,2.30340443]
[1756874871521,3.871,4341.7,4341.4,2.30340443]
[1756874871693,3.871,4341.7,4341.3,2.30744866]
[1756874871887,3.869,4341.6,4341.4,2.30339242]
[1756874872421,3.869,4341.6,4341.5,2.30335137]
[1756874872622,3.868,4341.6,4341.5,3.06405137]
[1756874873627,3.868,4341.6,4341.5,0.7607]
[1756874874125,3.868,4341.6,4341.4,2.30340142]
[1756874874920,3.868,4341.6,4341.4,2.30339632]
[1756874875121,3.868,4341.6,4341.5,3.06405137]
[1756874875322,3.868,4341.6,4341.3,0.004]
[1756874875629,3.868,4341.6,4341.4,2.30338186]
[1756874876095,3.868,4341.6,4341.3,0.4774]
[1756874876290,3.868,4341.6,4341.3,2.3074139]
[1756874876504,3.868,4341.6,4341.4,2.30339947]
[1756874877422,3.868,4341.6,4341.3,2.30744647]
[1756874877607,3.866,4341.5,4341.3,2.30744647]
[1756874878288,3.866,4341.5,4341.4,2.30340443]
[1756874878487,3.8687,4341.5,4341.3,0.004]
[1756874878923,3.8687,4341.5,4341.3,2.30745643]
[1756874880829,3.866,4341.5,4341.4,2.30340443]
[1756874881728,3.8714,4341.5,4341.3,0.004]
[1756874881896,3.866,4341.5,4341.3,0.004]
[1756874882096,3.866,4341.5,4341.3,0.4789]
[1756874882496,3.866,4341.5,4341.4,3.08200443]
[1756874883232,1.623,4341.8,4341.5,2.3033339]
[1756874883408,3.864,4341.7,4341.5,2.3033339]
[1756874883807,3.864,4341.7,4341.5,2.7782339]
[1756874885133,1.623,4341.8,4341.5,0.4749]
[1756874885434,3.863,4341.6,4341.5,0.4749]
[1756874885732,3.863,4341.6,4341.3,0.004]
[1756874885920,3.863,4341.6,4341.3,2.307435]
[1756874886122,3.863,4341.6,4341.3,2.782335]
[1756874886951,0.0027,4341.4,4341.3,0.004]
[1756874887096,6.03010443,4341.4,4341.3,0.004]
[1756874887295,6.34590343,4341.4,4341.3,0.004]
[1756874887914,6.03010443,4341.4,4341.3,0.004]
[1756874888227,7.32954885,4341.4,4341.3,0.004]
[1756874890027,11.20354885,4341.4,4341.3,0.004]
[1756874895068,10.93364885,4341.4,4341.3,0.004]
[1756874895240,7.05964885,4341.4,4341.3,0.004]
[1756874895435,10.93164885,4341.4,4341.3,0.004]
[1756874896944,11.04684885,4341.4,4341.3,0.004]
[1756874904490,7.17484885,4341.4,4341.3,0.004]
[1756874904658,11.04184885,4341.4,4341.3,0.004]
[1756874907690,10.58774885,4341.4,4341.3,0.004]
[1756874913497,17.74774885,4341.4,4341.3,0.004]
[1756874916431,6.09566974,4340.9,4340.8,0.024]
[1756874916628,6.09566974,4340.9,4340.7,1e-08]
[1756874916629,6.09572281,4340.8,4340.7,1e-08]
[1756874916794,7.15652181,4340.8,4340.7,1e-08]
[1756874916989,11.05052181,4340.8,4340.7,1e-08]
[1756874917190,11.14290942,4340.8,4340.7,1e-08]
[1756874919727,6.09577588,4340.7,4340.6,1e-08]
[1756874919915,7.9783193,4340.7,4340.6,1e-08]
[1756874920244,12.3516193,4340.7,4340.6,1e-08]
[1756874923952,12.0843193,4340.7,4340.6,1e-08]
[1756874924313,12.3490193,4340.7,4340.6,1e-08]
[1756874925054,12.0843193,4340.7,4340.6,1e-08]
[1756874925354,12.3490193,4340.7,4340.6,1e-08]
[1756874926412,12.4642193,4340.7,4340.6,1e-08]
[1756874927415,18.42373761,4340.7,4340.6,1e-08]
[1756874927633,18.15903761,4340.7,4340.6,1e-08]
[1756874927857,25.31903761,4340.7,4340.6,1e-08]
[1756874928039,6.75151831,4340.1,4340.0,0.004]
[1756874928240,22.54671831,4340.1,4340.0,0.004]
[1756874929045,23.01961831,4340.1,4340.0,0.004]
[1756874929235,25.4957062,4340.1,4340.0,0.004]
[1756874930877,21.5997062,4340.1,4340.0,0.004]
[1756874931158,26.79415062,4340.1,4340.0,0.004]
[1756874932848,26.79685062,4340.1,4340.0,0.004]
[1756874933046,26.79415062,4340.1,4340.0,0.004]
[1756874935852,26.79115062,4340.1,4340.0,1.1948]
[1756874936152,32.75066893,4340.1,4340.0,1.1948]
[1756874936352,16.93963231,4340.1,4340.0,1.1948]
[1756874936532,32.75066893,4340.1,4340.0,1.1948]
[1756874937856,22.89915062,4340.1,4340.0,1.1948]
[1756874938068,21.6987062,4340.1,4340.0,1.1948]
[1756874938542,20.8077062,4340.1,4340.0,1.1948]
[1756874938855,24.52571268,4340.1,4340.0,1.1948]
[1756874939226,20.63571268,4340.1,4340.0,1.1948]
[1756874939537,24.52571268,4340.1,4340.0,1.1948]
[1756874941127,20.63571268,4340.1,4340.0,1.1948]
[1756874941481,24.52571268,4340.1,4340.0,1.1948]
[1756874942446,24.52471268,4340.1,4340.0,1.1948]
[1756874943937,24.52471268,4340.1,4340.0,0.2912]
[1756874943938,24.84051168,4340.1,4340.0,0.2912]
[1756874944162,24.84051168,4340.1,4340.0,0.004]
[1756874945166,24.52471268,4340.1,4340.0,0.004]
[1756874945363,24.52471268,4340.1,4340.0,0.476]
[1756874945569,24.52471268,4340.1,4340.0,0.7689]
[1756874945967,20.63571268,4340.1,4340.0,0.7689]
[1756874946167,24.52271268,4340.1,4340.0,1.2569]
[1756874950438,24.52271268,4340.1,4340.0,0.7689]
[1756874950644,24.83851168,4340.1,4340.0,0.004]
[1756874951053,24.83851168,4340.1,4340.0,0.7849]
[1756874951054,14.99199337,4340.1,4340.0,0.7849]
[1756874951375,24.52071268,4340.1,4340.0,1.2569]
[1756874952076,24.51971268,4340.1,4340.0,1.2569]
[1756874954762,24.51971268,4340.1,4340.0,0.7689]
[1756874955278,20.63571268,4340.1,4340.0,0.7689]
[1756874955481,24.51771268,4340.1,4340.0,0.7689]
[1756874958943,20.63571268,4340.1,4340.0,1.2569]
[1756874959147,24.51571268,4340.1,4340.0,1.2569]
[1756874960179,24.51471268,4340.1,4340.0,1.2569]
[1756874966162,24.51471268,4340.1,4340.0,0.7689]
[1756874967464,20.63571268,4340.1,4340.0,0.7689]
[1756874967664,24.51071268,4340.1,4340.0,0.7689]
[1756874968992,24.51071268,4340.1,4340.0,1.2569]
[1756874969494,24.50971268,4340.1,4340.0,1.2569]
[1756874970168,20.63571268,4340.1,4340.0,1.2569]
[1756874970368,24.50871268,4340.1,4340.0,1.2569]
[1756874971262,12.3721,4340.1,4340.0,1.2569]
[1756874971514,1.7392,4340.1,4340.0,1.38539]
[1756874971964,8.6132,4340.1,4340.0,1.38539]
[1756874972166,5.6132,4340.1,4340.0,1.38539]
[1756874972666,8.6132,4340.1,4340.0,1.38539]
[1756874975196,8.6132,4340.1,4340.0,1.2569]
[1756874975396,14.57271831,4340.1,4340.0,1.2569]
[1756874977210,14.57271831,4340.1,4340.0,0.2969]
[1756874977427,14.57271831,4340.1,4340.0,0.7614]
[1756874977729,14.57271831,4340.1,4340.0,1.2595]
[1756874978528,14.56871831,4340.1,4340.0,1.2595]
[1756874985634,14.56571831,4340.1,4340.0,1.2595]
[1756874987130,10.69871831,4340.1,4340.0,1.2595]
[1756874987306,14.56571831,4340.1,4340.0,1.2595]
[1756874989646,8.6062,4340.1,4340.0,1.2595]
[1756874990118,15.88458329,4340.1,4340.0,0.004]
[1756874990317,19.52529766,4340.1,4340.0,0.004]
[1756874990648,20.2033721,4340.1,4340.0,0.004]
[1756874993446,19.6176731,4340.1,4340.0,0.004]
[1756874998138,15.2720731,4340.1,4340.0,0.004]
[1756874998324,19.1390731,4340.1,4340.0,0.004]
[1756875001522,9.55929544,4340.1,4340.0,1.2423]
[1756875001721,8.69857544,4340.1,4340.0,1.2423]
[1756875001939,8.69857544,4340.1,4340.0,0.7646]
[1756875001940,11.00266981,4340.1,4340.0,0.7646]
[1756875002138,11.00266981,4340.1,4340.0,0.004]
[1756875002752,11.00536981,4340.1,4340.0,0.004]
[1756875002956,11.81716881,4340.1,4340.0,0.004]
[1756875003251,20.03906881,4340.1,4340.0,0.004]
[1756875005248,16.17206881,4340.1,4340.0,0.004]
[1756875005432,18.95736981,4340.1,4340.0,0.004]
[1756875005758,18.95736981,4340.1,4340.0,1.2423]
[1756875005759,15.16266981,4340.1,4340.0,1.2423]
[1756875006060,8.00266981,4340.1,4340.0,0.7646]
[1756875006224,11.00266981,4340.1,4340.0,0.7646]
[1756875007256,10.69736994,4340.1,4340.0,0.7646]
[1756875008642,10.70006994,4340.1,4340.0,0.004]
[1756875010576,6.83306994,4340.1,4340.0,0.004]
[1756875010876,10.70006994,4340.1,4340.0,0.004]
[1756875013857,11.78176894,4340.1,4340.0,0.004]
[1756875014769,11.51186894,4340.1,4340.0,0.004]
[1756875021078,11.51286894,4340.1,4340.0,0.004]
[1756875022177,11.01686894,4340.1,4340.0,0.004]
[1756875023955,4.84307457,4340.1,4340.0,0.2999]
[1756875024160,10.69836994,4340.1,4340.0,1.2423]
[1756875026386,8.39427557,4340.1,4340.0,1.2423]
[1756875026604,10.69836994,4340.1,4340.0,1.2423]
[1756875027858,6.83136994,4340.1,4340.0,0.7646]
[1756875028089,10.69836994,4340.1,4340.0,0.7646]
[1756875029771,10.69836994,4340.1,4340.0,1.2351]
[1756875031957,10.69836994,4340.1,4340.0,0.7646]
[1756875033702,10.70106994,4340.1,4340.0,0.004]
[1756875033900,11.51446894,4340.1,4340.0,0.004]
[1756875035207,11.19866994,4340.1,4340.0,0.004]
[1756875037805,10.70106994,4340.1,4340.0,0.004]
[1756875037983,17.86106994,4340.1,4340.0,0.004]
[1756875038498,19.15066994,4340.1,4340.0,0.004]
[1756875038681,19.46646894,4340.1,4340.0,0.004]
[1756875039082,19.73636894,4340.1,4340.0,0.004]
[1756875040080,18.65036994,4340.1,4340.0,0.004]
[1756875040280,18.65036994,4340.1,4340.0,0.4671]
[1756875040485,18.65036994,4340.1,4340.0,0.004]
[1756875041395,18.65306994,4340.1,4340.0,0.004]
[1756875044211,19.15066994,4340.1,4340.0,0.004]
[1756875046806,18.65306994,4340.1,4340.0,0.004]
[1756875049405,18.65036994,4340.1,4340.0,0.004]
[1756875050116,18.65576994,4340.1,4340.0,0.004]
[1756875050714,19.15336994,4340.1,4340.0,0.004]
[1756875050915,13.99136994,4340.1,4340.0,1.2312]
[1756875051286,17.85736994,4340.1,4340.0,1.2312]
[1756875051486,23.81499559,4340.1,4340.0,1.2312]
[1756875055436,29.77262124,4340.1,4340.0,0.2976]
[1756875055624,29.77262124,4340.1,4340.0,0.7607]
[1756875056124,23.81499559,4340.1,4340.0,0.7607]
[1756875057528,23.81499559,4340.1,4340.0,1.2312]
[1756875060542,12.55327557,4340.1,4340.0,1.2312]
[1756875060705,17.85736994,4340.1,4340.0,1.35712]
[1756875060894,17.85736994,4340.1,4340.0,1.2312]
[1756875061333,14.85736994,4340.1,4340.0,1.2312]
[1756875062435,14.85736994,4340.1,4340.0,0.2976]
[1756875062436,17.7649945,4340.1,4340.0,0.2976]
[1756875062612,17.7649945,4340.1,4340.0,0.7517]
[1756875063401,11.9012,4340.1,4340.0,0.7517]
[1756875063601,8.6062,4340.1,4340.0,1.2051]
[1756875063845,8.6062,4340.1,4340.0,1.32841]
[1756875065601,4.7412,4340.1,4340.0,1.32841]
[1756875066002,8.6062,4340.1,4340.0,1.32841]
[1756875066465,4.7412,4340.1,4340.0,1.32841]
[1756875066807,0.001,4340.1,4340.0,3.63255746]
[1756875067009,0.001,4340.2,4340.1,2.30409437]
[1756875067213,0.632,4340.6,4340.5,2.30388204]
[1756875067534,0.632,4340.6,4340.5,2.72258204]
[1756875067734,0.632,4340.6,4340.5,3.63008204]
[1756875068045,3.866,4340.6,4340.5,3.63008204]
[1756875068248,0.001,4340.6,4340.5,3.63008204]
[1756875068453,0.001,4340.6,4340.5,10.18111204]
[1756875068671,1e-08,4340.7,4340.6,3.09582896]
[1756875068817,1e-08,4340.7,4340.6,4.00332896]
[1756875069152,1e-08,4340.7,4340.6,4.32986724]
[1756875069308,1e-08,4340.7,4340.6,4.42202896]
[1756875069509,1e-08,4340.7,4340.6,5.98011921]
[1756875070740,1e-08,4340.7,4340.6,12.38011921]
[1756875075472,1e-08,4340.7,4340.6,16.33642857]
[1756875077137,0.02,4341.8,4341.5,3.09535137]
[1756875077336,1e-08,4341.6,4341.5,13.05421053]
[1756875077536,1e-08,4341.6,4341.5,15.94034382]
[1756875077778,1e-08,4341.6,4341.5,22.43263827]
[1756875080574,1e-08,4341.6,4341.5,16.47501262]
[1756875081153,1e-08,4341.6,4341.5,19.47501262]
[1756875083339,1e-08,4341.8,4341.7,3.09524527]
[1756875083544,1e-08,4341.8,4341.7,15.18277889]
[1756875083761,1e-08,4341.8,4341.7,16.39377889]
[1756875083979,1e-08,4341.8,4341.7,22.79377889]
[1756875084338,1e-08,4341.8,4341.7,22.88606206]
[1756875089185,1e-08,4341.8,4341.7,25.88606206]
[1756875096309,1e-08,4342.5,4342.4,3.09487398]
[1756875096511,1e-08,4342.5,4342.4,13.45328205]
[1756875096718,1e-08,4342.5,4342.4,14.32478205]
[1756875097008,1e-08,4342.5,4342.4,20.81705734]
[1756875097793,0.46,4344.4,4343.0,0.792]
[1756875097992,0.46,4344.4,4342.5,7.78969905]
[1756875097993,0.46,4344.7,4344.6,2.30170786]
[1756875098312,0.099,4344.7,4344.6,12.14335058]
[1756875098486,0.099,4344.7,4344.6,13.56484995]
[1756875098808,0.099,4344.7,4344.6,7.6072243]
[1756875099915,0.559,4344.7,4344.6,7.6212243]
[1756875100483,0.099,4344.7,4344.6,7.6212243]
[1756875101812,0.559,4344.7,4344.6,7.6202243]
[1756875104524,0.099,4344.7,4344.6,7.6202243]
[1756875105520,0.099,4344.7,4344.6,3.7462243]
[1756875105721,0.099,4344.7,4344.6,7.6172243]
[1756875106098,0.099,4344.7,4344.6,3.7462243]
[1756875106302,0.1,4344.7,4344.6,7.6172243]
[1756875107324,0.001,4345.2,4345.1,3.093443]
[1756875107491,0.001,4345.2,4345.1,8.585443]
[1756875107693,0.001,4345.2,4345.1,11.115443]
[1756875107888,0.001,4345.2,4345.1,15.872943]
[1756875108115,0.001,4345.2,4345.1,16.346343]
[1756875108323,0.001,4345.2,4345.1,18.61425097]
[1756875108620,0.001,4345.2,4345.1,18.23307095]
[1756875109519,0.001,4345.2,4345.1,18.70647095]
[1756875110594,0.001,4345.2,4345.1,18.23307095]
[1756875111826,0.001,4345.2,4345.1,18.23107095]
[1756875112724,0.001,4345.2,4345.1,17.77067095]
[1756875113023,0.001,4345.2,4345.1,18.23107095]
[1756875113923,0.1,4345.2,4345.1,16.68077095]
[1756875114121,0.1,4345.2,4345.1,16.67977095]
[1756875114324,0.001,4345.2,4345.1,16.67977095]
[1756875114524,0.001,4345.2,4345.1,10.27977095]
[1756875114714,0.001,4345.2,4345.1,8.01186298]
[1756875116426,0.001,4345.2,4345.1,8.76816298]
[1756875117223,0.001,4345.2,4345.1,10.03356298]
[1756875118423,0.001,4345.2,4345.1,16.43356298]
[1756875118637,0.001,4345.2,4345.1,12.09216298]
[1756875118840,0.001,4345.2,4345.1,17.88825913]
[1756875118998,0.001,4345.6,4345.5,9.55514483]
[1756875119193,0.001,4345.6,4345.5,13.43314483]
[1756875119502,0.001,4345.6,4345.5,14.76834483]
[1756875119738,0.04,4345.8,4345.7,3.09312525]
[1756875119897,0.04,4345.8,4345.7,8.80827226]
[1756875120100,0.04,4345.8,4345.7,10.03687226]
[1756875120310,0.04,4345.8,4345.7,10.49687226]
[1756875122123,0.04,4345.8,4345.7,10.00207226]
[1756875122431,0.04,4345.8,4345.7,15.94207226]
[1756875122934,0.139,4345.8,4345.7,10.53327226]
[1756875123233,0.139,4345.8,4345.7,8.01427226]
[1756875123435,0.139,4345.8,4345.7,6.18212525]
[1756875124311,0.139,4345.8,4345.7,2.30112525]
[1756875124511,0.6354,4345.8,4345.7,6.18212525]
[1756875127209,0.908,4345.8,4345.7,6.18212525]
[1756875127605,0.6354,4345.8,4345.7,6.18212525]
[1756875128412,0.908,4345.8,4345.5,0.1152]
[1756875128815,0.908,4345.8,4345.5,3.9962]
[1756875128816,0.2726,4345.7,4345.5,3.9962]
[1756875129043,0.868,4345.6,4345.5,3.9962]
[1756875129551,0.868,4345.6,4345.5,6.29743115]
[1756875130414,0.868,4345.6,4345.5,0.1152]
[1756875131642,0.04,4345.8,4345.6,2.3011782]
[1756875131844,0.04,4345.8,4345.7,2.30112525]
[1756875132142,0.04,4345.8,4345.7,6.18212525]
[1756875132640,0.3471,4345.8,4345.7,6.18212525]
[1756875132809,0.04,4345.8,4345.7,6.18212525]
[1756875133237,0.04,4345.8,4345.7,7.08490955]
[1756875133952,0.139,4345.8,4345.7,7.08490955]
[1756875134149,0.139,4345.8,4345.7,6.18212525]
[1756875134446,0.6354,4345.8,4345.7,6.18112525]
[1756875134608,0.139,4345.8,4345.7,6.18112525]
[1756875135243,0.6354,4345.8,4345.7,2.30112525]
[1756875136741,0.6354,4345.8,4345.6,3.88]
[1756875137318,0.6354,4345.8,4345.7,2.30112525]
[1756875139431,0.139,4345.8,4345.7,2.30112525]
[1756875142955,0.6364,4345.8,4345.7,2.30112525]
[1756875143451,0.14,4345.8,4345.7,2.30112525]
[1756875143852,0.041,4345.8,4345.7,3.10042525]
[1756875144152,0.041,4345.8,4345.7,4.14935308]
[1756875144930,0.041,4345.8,4345.7,4.94135308]
[1756875145139,0.041,4345.8,4345.7,4.91834183]
[1756875146241,0.001,4346.1,4346.0,3.0929664]
[1756875146443,0.001,4346.1,4346.0,9.31588934]
[1756875146659,0.001,4346.1,4346.0,10.54448934]
[1756875148452,1e-08,4346.1,4346.0,17.79840302]
[1756875148958,1e-08,4346.3,4346.2,3.09286052]
[1756875149169,1e-08,4346.3,4346.2,6.97086052]
[1756875149325,1e-08,4346.3,4346.2,9.27798779]
[1756875149525,1e-08,4346.3,4346.2,10.20938779]
[1756875151644,1e-08,4346.7,4346.6,0.792]
[1756875151839,1e-08,4346.7,4346.6,17.24656894]
[1756875152172,1e-08,4346.7,4346.6,20.49783223]
[1756875154384,1e-08,4346.7,4346.6,20.61303223]
[1756875155327,1e-08,4346.7,4346.6,20.78964075]
[1756875156131,1e-08,4346.7,4346.6,21.28324075]
[1756875156460,1e-08,4346.7,4346.6,21.28224075]
[1756875157035,1e-08,4346.7,4346.6,27.68224075]
[1756875161162,1e-08,4346.7,4346.6,27.68624075]
[1756875161778,1e-08,4347.2,4347.1,3.09238416]
[1756875161965,1e-08,4347.2,4347.1,9.44267261]
[1756875162275,0.02,4348.8,4347.1,9.44267261]
[1756875162276,0.5136,4348.8,4348.7,3.09153779]
[1756875162563,0.02,4348.8,4348.7,6.96353779]
[1756875162874,0.6126,4348.8,4348.7,7.07873779]
[1756875163234,0.8852,4348.8,4348.7,6.28873779]
[1756875164969,0.6126,4348.8,4348.7,6.28873779]
[1756875165965,0.8852,4348.8,4348.7,6.28973779]
[1756875168094,0.8852,4348.8,4348.7,6.28873779]
[1756875170083,0.8852,4348.8,4348.7,0.1152]
[1756875170405,0.6126,4348.8,4348.7,6.28773779]
[1756875170605,0.119,4348.8,4348.7,6.28773779]
[1756875171058,0.6126,4348.8,4348.7,6.28773779]
[1756875171260,0.8852,4348.8,4348.7,6.28873779]
[1756875171678,0.8852,4348.8,4348.7,2.41473779]
[1756875171875,0.6126,4348.8,4348.7,6.28773779]
[1756875172103,0.8852,4348.8,4348.7,6.28773779]
[1756875175205,0.6126,4348.8,4348.7,6.28773779]
[1756875175388,0.8852,4348.8,4348.7,0.1152]
[1756875175705,6.81818901,4348.8,4348.7,3.9862]
[1756875175873,6.81818901,4348.8,4348.7,0.1152]
[1756875176602,6.81818901,4348.8,4348.7,2.41473779]
[1756875177012,6.81818901,4348.8,4348.7,0.1152]
[1756875177508,6.81818901,4348.8,4348.7,2.41473779]
[1756875177807,0.8852,4348.8,4348.7,2.41473779]
[1756875177981,0.6126,4348.8,4348.7,2.41473779]
[1756875179081,0.6136,4348.8,4348.7,2.41473779]
[1756875179279,6.81918901,4348.8,4347.7,1.621]
[1756875179477,0.12,4348.8,4348.7,2.29953779]
[1756875179675,0.12,4348.8,4348.7,2.41473779]
[1756875179995,0.5934,4348.8,4348.7,2.41473779]